[Event "Titled Tuesday Blitz November 29 Late 2022"]
[White "Radovanovic, Dusan"]
[Black "Olafsson, Helgi"]
[WhiteFideId "926868"]
[BlackFideId "2300010"]
[WhiteElo "2341"]
[BlackElo "2463"]
[Result "0-1"]
[Round "04"]
[TimeControl "180+1"]
[Date "2022.11.30"]
[WhiteClock "0:00:12"]
[BlackClock "0:00:05"]

1. e4 {[%clk 0:03:00]}  c5 {[%clk 0:02:59]} 2. Nf3 {[%clk 0:03:01]}  e6 {[%clk 0:02:59]} 3. d4 {[%clk 0:03:01]}  cxd4 {[%clk 0:02:59]} 4. Nxd4 {[%clk 0:03:02]}  a6 {[%clk 0:03:00]} 5. c4 {[%clk 0:03:00]}  Nf6 {[%clk 0:02:59]} 6. Nc3 {[%clk 0:03:00]}  Bb4 {[%clk 0:02:59]} 7. Qd3 {[%clk 0:02:59]}  O-O {[%clk 0:02:57]} 8. Be2 {[%clk 0:02:55]}  Nc6 {[%clk 0:02:55]} 9. Nxc6 {[%clk 0:02:53]}  dxc6 {[%clk 0:02:55]} 10. f3 {[%clk 0:02:45]}  e5 {[%clk 0:02:49]} 11. Be3 {[%clk 0:02:41]}  Be6 {[%clk 0:02:45]} 12. Qxd8 {[%clk 0:02:29]}  Rfxd8 {[%clk 0:02:44]} 13. O-O {[%clk 0:02:30]}  Nd7 {[%clk 0:02:40]} 14. Rfd1 {[%clk 0:02:26]}  b5 {[%clk 0:02:36]} 15. cxb5 {[%clk 0:02:21]}  axb5 {[%clk 0:02:36]} 16. a3 {[%clk 0:02:03]}  Bc5 {[%clk 0:02:29]} 17. Kf2 {[%clk 0:02:02]}  Kf8 {[%clk 0:02:26]} 18. Rd2 {[%clk 0:01:57]}  Bxe3+ {[%clk 0:02:10]} 19. Kxe3 {[%clk 0:01:56]}  Ke7 {[%clk 0:02:00]} 20. Rad1 {[%clk 0:01:55]}  Rdb8 {[%clk 0:01:56]} 21. g3 {[%clk 0:01:45]}  Nc5 {[%clk 0:01:51]} 22. f4 {[%clk 0:01:43]}  f6 {[%clk 0:01:37]} 23. Rd6 {[%clk 0:01:18]}  Rc8 {[%clk 0:01:13]} 24. f5 {[%clk 0:01:10]}  Bb3 {[%clk 0:01:06]} 25. R1d2 {[%clk 0:01:08]}  Ra7 {[%clk 0:01:01]} 26. g4 {[%clk 0:01:08]}  Rd7 {[%clk 0:01:00]} 27. Rxd7+ {[%clk 0:01:07]}  Nxd7 {[%clk 0:01:00]} 28. h4 {[%clk 0:01:07]}  Nc5 {[%clk 0:00:58]} 29. g5 {[%clk 0:01:08]}  Bf7 {[%clk 0:00:56]} 30. Bd1 {[%clk 0:01:03]}  Rb8 {[%clk 0:00:55]} 31. b4 {[%clk 0:00:55]}  Nd7 {[%clk 0:00:53]} 32. Ne2 {[%clk 0:00:43]}  Nb6 {[%clk 0:00:51]} 33. Rd3 {[%clk 0:00:40]}  Ra8 {[%clk 0:00:49]} 34. Ng3 {[%clk 0:00:35]}  Nc4+ {[%clk 0:00:48]} 35. Kf2 {[%clk 0:00:33]}  Rxa3 {[%clk 0:00:39]} 36. Rxa3 {[%clk 0:00:30]}  Nxa3 {[%clk 0:00:39]} 37. Ke3 {[%clk 0:00:24]}  Nc4+ {[%clk 0:00:38]} 38. Kd3 {[%clk 0:00:24]}  Nd6 {[%clk 0:00:35]} 39. Kc3 {[%clk 0:00:23]}  Nc8 {[%clk 0:00:28]} 40. Bb3 {[%clk 0:00:20]}  Bxb3 {[%clk 0:00:23]} 41. Kxb3 {[%clk 0:00:21]}  Nb6 {[%clk 0:00:23]} 42. g6 {[%clk 0:00:20]}  h6 {[%clk 0:00:16]} 43. Nh5 {[%clk 0:00:20]}  Kf8 {[%clk 0:00:16]} 44. Kc3 {[%clk 0:00:20]}  Nd7 {[%clk 0:00:16]} 45. Kd3 {[%clk 0:00:20]}  c5 {[%clk 0:00:15]} 46. bxc5 {[%clk 0:00:20]}  Nxc5+ {[%clk 0:00:15]} 47. Kc3 {[%clk 0:00:17]}  Nxe4+ {[%clk 0:00:14]} 48. Kb4 {[%clk 0:00:18]}  Nd6 {[%clk 0:00:14]} 49. Ng3 {[%clk 0:00:18]}  Ke7 {[%clk 0:00:13]} 50. Kc5 {[%clk 0:00:19]}  Kd7 {[%clk 0:00:13]} 51. h5 {[%clk 0:00:18]}  Kc7 {[%clk 0:00:13]} 52. Kd5 {[%clk 0:00:17]}  b4 {[%clk 0:00:13]} 53. Ne2 {[%clk 0:00:17]}  Nxf5 {[%clk 0:00:11]} 54. Ke6 {[%clk 0:00:16]}  Nd4+ {[%clk 0:00:09]} 55. Kf7 {[%clk 0:00:15]}  Nxe2 {[%clk 0:00:08]} 56. Kxg7 {[%clk 0:00:16]}  b3 {[%clk 0:00:07]} 57. Kh7 {[%clk 0:00:14]}  b2 {[%clk 0:00:07]} 58. g7 {[%clk 0:00:15]}  b1=Q+ {[%clk 0:00:07]} 59. Kxh6 {[%clk 0:00:13]}  Qg1 {[%clk 0:00:06]} 60. Kh7 {[%clk 0:00:12]}  Nf4 {[%clk 0:00:06]} 61. g8=Q {[%clk 0:00:11]}  Qxg8+ {[%clk 0:00:05]} 62. Kxg8 {[%clk 0:00:12]}  Nxh5 {[%clk 0:00:05]} 0-1


[Site "https://www.chess.com"]

[Event "Titled Tuesday Blitz November 29 Late 2022"]
[White "Rangel, Daniel"]
[Black "Burke, Paul"]
[WhiteFideId "2124475"]
[BlackFideId "2605767"]
[WhiteElo "2225"]
[BlackElo "1923"]
[Result "1-0"]
[Round "04"]
[TimeControl "180+1"]
[Date "2022.11.30"]
[WhiteClock "0:01:42"]
[BlackClock "0:00:30"]

1. e4 {[%clk 0:03:00]}  e5 {[%clk 0:02:59]} 2. Nf3 {[%clk 0:03:01]}  Nc6 {[%clk 0:02:59]} 3. d4 {[%clk 0:03:01]}  exd4 {[%clk 0:02:58]} 4. Nxd4 {[%clk 0:03:02]}  Be7 {[%clk 0:02:58]} 5. Nc3 {[%clk 0:02:57]}  d6 {[%clk 0:02:53]} 6. Be3 {[%clk 0:02:56]}  Nf6 {[%clk 0:02:52]} 7. Qd2 {[%clk 0:02:55]}  O-O {[%clk 0:02:51]} 8. O-O-O {[%clk 0:02:53]}  Nxd4 {[%clk 0:02:51]} 9. Bxd4 {[%clk 0:02:52]}  c5 {[%clk 0:02:51]} 10. Be3 {[%clk 0:02:51]}  a6 {[%clk 0:02:43]} 11. f3 {[%clk 0:02:50]}  b5 {[%clk 0:02:40]} 12. g4 {[%clk 0:02:50]}  b4 {[%clk 0:02:40]} 13. Ne2 {[%clk 0:02:44]}  Be6 {[%clk 0:02:37]} 14. Kb1 {[%clk 0:02:42]}  Qa5 {[%clk 0:02:36]} 15. Nc1 {[%clk 0:02:42]}  c4 {[%clk 0:02:27]} 16. Qf2 {[%clk 0:02:33]}  Rfb8 {[%clk 0:02:07]} 17. g5 {[%clk 0:02:31]}  Nd7 {[%clk 0:02:04]} 18. f4 {[%clk 0:02:29]}  Bg4 {[%clk 0:01:51]} 19. Rd5 {[%clk 0:02:22]}  Nc5 {[%clk 0:01:46]} 20. Bxc4 {[%clk 0:02:20]}  Be6 {[%clk 0:01:42]} 21. f5 {[%clk 0:02:11]}  Bxd5 {[%clk 0:01:41]} 22. Bxd5 {[%clk 0:02:12]}  Na4 {[%clk 0:01:31]} 23. g6 {[%clk 0:02:07]}  Bf6 {[%clk 0:01:25]} 24. gxf7+ {[%clk 0:02:02]}  Kh8 {[%clk 0:01:24]} 25. Bd4 {[%clk 0:01:58]}  Nc3+ {[%clk 0:01:04]} 26. Ka1 {[%clk 0:01:53]}  Nxd5 {[%clk 0:00:56]} 27. exd5 {[%clk 0:01:54]}  Bxd4 {[%clk 0:00:51]} 28. Qxd4 {[%clk 0:01:52]}  Qc5 {[%clk 0:00:50]} 29. Qxc5 {[%clk 0:01:44]}  dxc5 {[%clk 0:00:50]} 30. Re1 {[%clk 0:01:45]}  Rf8 {[%clk 0:00:44]} 31. Re7 {[%clk 0:01:45]}  Rad8 {[%clk 0:00:40]} 32. Nd3 {[%clk 0:01:45]}  Rxd5 {[%clk 0:00:39]} 33. b3 {[%clk 0:01:45]}  Rxf5 {[%clk 0:00:36]} 34. Ne5 {[%clk 0:01:43]}  h6 {[%clk 0:00:34]} 35. Ng6+ {[%clk 0:01:42]}  Kh7 {[%clk 0:00:32]} 36. Nxf8+ {[%clk 0:01:43]}  Kh8 {[%clk 0:00:30]} 37. Ng6+ {[%clk 0:01:42]} 1-0


[Site "https://www.chess.com"]

[Event "Titled Tuesday Blitz November 29 Late 2022"]
[White "Redzisz, Michal"]
[Black "Grot, Blazej"]
[WhiteFideId "21816107"]
[BlackFideId "21835845"]
[WhiteElo "2136"]
[BlackElo "1822"]
[Result "1-0"]
[Round "04"]
[TimeControl "180+1"]
[Date "2022.11.30"]
[WhiteClock "0:00:18"]
[BlackClock "0:00:01"]

1. Na3 {[%clk 0:02:59]}  e5 {[%clk 0:02:56]} 2. c4 {[%clk 0:02:59]}  d6 {[%clk 0:02:49]} 3. g3 {[%clk 0:02:56]}  Nd7 {[%clk 0:02:50]} 4. Bg2 {[%clk 0:02:56]}  Ngf6 {[%clk 0:02:50]} 5. Nc2 {[%clk 0:02:56]}  Be7 {[%clk 0:02:50]} 6. d4 {[%clk 0:02:57]}  O-O {[%clk 0:02:50]} 7. b3 {[%clk 0:02:49]}  c6 {[%clk 0:02:50]} 8. Bb2 {[%clk 0:02:49]}  Qc7 {[%clk 0:02:50]} 9. e3 {[%clk 0:02:49]}  Re8 {[%clk 0:02:51]} 10. Ne2 {[%clk 0:02:50]}  Nf8 {[%clk 0:02:51]} 11. O-O {[%clk 0:02:49]}  Bf5 {[%clk 0:02:47]} 12. Rc1 {[%clk 0:02:49]}  Rad8 {[%clk 0:02:46]} 13. Nc3 {[%clk 0:02:21]}  N8d7 {[%clk 0:02:43]} 14. e4 {[%clk 0:02:20]}  Bg6 {[%clk 0:02:41]} 15. Re1 {[%clk 0:02:17]}  exd4 {[%clk 0:02:40]} 16. Nxd4 {[%clk 0:02:17]}  Nc5 {[%clk 0:02:36]} 17. Qd2 {[%clk 0:02:14]}  Bf8 {[%clk 0:02:33]} 18. f3 {[%clk 0:02:06]}  a5 {[%clk 0:02:32]} 19. Nde2 {[%clk 0:01:55]}  Nfd7 {[%clk 0:02:16]} 20. Nf4 {[%clk 0:01:52]}  Ne5 {[%clk 0:02:15]} 21. h4 {[%clk 0:01:39]}  h6 {[%clk 0:02:08]} 22. Nxg6 {[%clk 0:01:30]}  fxg6 {[%clk 0:01:56]} 23. Re3 {[%clk 0:01:21]}  Be7 {[%clk 0:01:44]} 24. Ne2 {[%clk 0:01:00]}  g5 {[%clk 0:01:24]} 25. hxg5 {[%clk 0:00:59]}  hxg5 {[%clk 0:01:25]} 26. Nd4 {[%clk 0:00:55]}  Bf6 {[%clk 0:00:56]} 27. Qe2 {[%clk 0:00:41]}  Qb6 {[%clk 0:00:30]} 28. f4 {[%clk 0:00:24]}  gxf4 {[%clk 0:00:22]} 29. gxf4 {[%clk 0:00:25]}  Ned3 {[%clk 0:00:22]} 30. Rxd3 {[%clk 0:00:20]}  Nxd3 {[%clk 0:00:23]} 31. Qxd3 {[%clk 0:00:21]}  c5 {[%clk 0:00:24]} 32. Nf5 {[%clk 0:00:21]}  Bxb2 {[%clk 0:00:23]} 33. Qd5+ {[%clk 0:00:21]}  Kf8 {[%clk 0:00:12]} 34. Nh4 {[%clk 0:00:21]}  Re7 {[%clk 0:00:04]} 35. Ng6+ {[%clk 0:00:19]}  Ke8 {[%clk 0:00:04]} 36. Bh3 {[%clk 0:00:19]}  Rf7 {[%clk 0:00:01]} 37. Qe6+ {[%clk 0:00:18]} 1-0


[Site "https://www.chess.com"]

[Event "Titled Tuesday Blitz November 29 Late 2022"]
[White "Richter, Paul"]
[Black "Popilski, Gil"]
[WhiteFideId "2046350"]
[BlackFideId "2809060"]
[WhiteElo "2555"]
[BlackElo "2537"]
[Result "1-0"]
[Round "04"]
[TimeControl "180+1"]
[Date "2022.11.30"]
[WhiteClock "0:00:03"]
[BlackClock "0:00:13"]

1. e4 {[%clk 0:03:00]}  e5 {[%clk 0:02:50]} 2. Nf3 {[%clk 0:03:00]}  Nf6 {[%clk 0:02:35]} 3. Nxe5 {[%clk 0:02:59]}  d6 {[%clk 0:02:35]} 4. Nf3 {[%clk 0:02:59]}  Nxe4 {[%clk 0:02:26]} 5. d4 {[%clk 0:02:59]}  d5 {[%clk 0:02:25]} 6. Bd3 {[%clk 0:02:59]}  Bd6 {[%clk 0:02:20]} 7. O-O {[%clk 0:02:57]}  O-O {[%clk 0:02:02]} 8. c4 {[%clk 0:02:53]}  c6 {[%clk 0:02:02]} 9. Nc3 {[%clk 0:02:52]}  Nxc3 {[%clk 0:02:01]} 10. bxc3 {[%clk 0:02:53]}  dxc4 {[%clk 0:02:01]} 11. Bxc4 {[%clk 0:02:52]}  Bf5 {[%clk 0:02:02]} 12. h3 {[%clk 0:02:49]}  Nd7 {[%clk 0:02:00]} 13. Re1 {[%clk 0:02:47]}  b5 {[%clk 0:01:59]} 14. Bb3 {[%clk 0:02:37]}  h6 {[%clk 0:01:53]} 15. a4 {[%clk 0:02:13]}  Nb6 {[%clk 0:01:26]} 16. axb5 {[%clk 0:01:48]}  cxb5 {[%clk 0:01:27]} 17. Ba3 {[%clk 0:01:45]}  a5 {[%clk 0:01:23]} 18. Ne5 {[%clk 0:01:32]}  a4 {[%clk 0:01:14]} 19. Bxd6 {[%clk 0:00:21]}  Qxd6 {[%clk 0:01:06]} 20. Nxf7 {[%clk 0:00:17]}  Rxf7 {[%clk 0:00:37]} 21. Bxf7+ {[%clk 0:00:18]}  Kxf7 {[%clk 0:00:38]} 22. Qf3 {[%clk 0:00:18]}  Kg6 {[%clk 0:00:32]} 23. Re5 {[%clk 0:00:12]}  Rf8 {[%clk 0:00:30]} 24. Rxb5 {[%clk 0:00:10]}  Nc4 {[%clk 0:00:22]} 25. Rxa4 {[%clk 0:00:07]}  Bc2 {[%clk 0:00:16]} 26. Qg4+ {[%clk 0:00:05]}  Kh7 {[%clk 0:00:16]} 27. Ra7 {[%clk 0:00:04]}  Re8 {[%clk 0:00:13]} 28. Qxg7# {[%clk 0:00:03]} 1-0


[Site "https://www.chess.com"]

[Event "Titled Tuesday Blitz November 29 Late 2022"]
[White "Rios Escobar, Adan"]
[Black "Adury, Anant"]
[WhiteFideId "3403645"]
[BlackFideId "30964687"]
[WhiteElo "2300"]
[BlackElo "2161"]
[Result "1/2-1/2"]
[Round "04"]
[TimeControl "180+1"]
[Date "2022.11.30"]
[WhiteClock "0:00:14"]
[BlackClock "0:00:12"]

1. d4 {[%clk 0:02:43]}  c6 {[%clk 0:03:00]} 2. c4 {[%clk 0:02:41]}  d5 {[%clk 0:03:00]} 3. Nf3 {[%clk 0:02:40]}  Nf6 {[%clk 0:03:01]} 4. g3 {[%clk 0:02:40]}  dxc4 {[%clk 0:03:01]} 5. Bg2 {[%clk 0:02:40]}  b5 {[%clk 0:03:01]} 6. O-O {[%clk 0:02:38]}  e6 {[%clk 0:02:58]} 7. b3 {[%clk 0:02:34]}  cxb3 {[%clk 0:02:57]} 8. Qxb3 {[%clk 0:02:35]}  Be7 {[%clk 0:02:56]} 9. Nc3 {[%clk 0:02:32]}  O-O {[%clk 0:02:56]} 10. Ne5 {[%clk 0:02:30]}  Nd5 {[%clk 0:02:55]} 11. Rd1 {[%clk 0:01:52]}  Nxc3 {[%clk 0:02:55]} 12. Qxc3 {[%clk 0:01:50]}  Bb7 {[%clk 0:02:56]} 13. a4 {[%clk 0:01:48]}  a6 {[%clk 0:02:55]} 14. Bb2 {[%clk 0:01:46]}  Nd7 {[%clk 0:02:53]} 15. Nxc6 {[%clk 0:01:41]}  Bxc6 {[%clk 0:02:53]} 16. Bxc6 {[%clk 0:01:42]}  Rc8 {[%clk 0:02:52]} 17. axb5 {[%clk 0:01:36]}  axb5 {[%clk 0:02:53]} 18. Qf3 {[%clk 0:01:26]}  Bf6 {[%clk 0:02:22]} 19. Bxb5 {[%clk 0:01:22]}  Rb8 {[%clk 0:02:22]} 20. Qd3 {[%clk 0:01:20]}  Qb6 {[%clk 0:02:16]} 21. Bxd7 {[%clk 0:01:14]}  Qxb2 {[%clk 0:02:13]} 22. Rab1 {[%clk 0:01:08]}  Qa2 {[%clk 0:01:58]} 23. Bc6 {[%clk 0:00:39]}  Rxb1 {[%clk 0:01:44]} 24. Rxb1 {[%clk 0:00:40]}  Rd8 {[%clk 0:01:42]} 25. e3 {[%clk 0:00:35]}  Rc8 {[%clk 0:01:13]} 26. Be4 {[%clk 0:00:34]}  g6 {[%clk 0:01:10]} 27. h4 {[%clk 0:00:33]}  h5 {[%clk 0:01:10]} 28. Rb7 {[%clk 0:00:24]}  Qa1+ {[%clk 0:00:37]} 29. Kg2 {[%clk 0:00:23]}  Rc3 {[%clk 0:00:36]} 30. Qb5 {[%clk 0:00:17]}  Rc8 {[%clk 0:00:26]} 31. Qd7 {[%clk 0:00:17]}  Rf8 {[%clk 0:00:27]} 32. Bxg6 {[%clk 0:00:17]}  Qa3 {[%clk 0:00:19]} 33. Bxf7+ {[%clk 0:00:17]}  Kh8 {[%clk 0:00:19]} 34. Bxe6 {[%clk 0:00:17]}  Qe7 {[%clk 0:00:16]} 35. Qxe7 {[%clk 0:00:17]}  Bxe7 {[%clk 0:00:17]} 36. Rxe7 {[%clk 0:00:17]}  Rf6 {[%clk 0:00:17]} 37. d5 {[%clk 0:00:16]}  Rxf2+ {[%clk 0:00:11]} 38. Kg1 {[%clk 0:00:12]}  Rf1+ {[%clk 0:00:11]} 39. Kh2 {[%clk 0:00:12]}  Rf2+ {[%clk 0:00:11]} 40. Kh3 {[%clk 0:00:13]}  Rh2+ {[%clk 0:00:12]} 41. Kxh2 {[%clk 0:00:14]} 1/2-1/2


[Site "https://www.chess.com"]

[Event "Titled Tuesday Blitz November 29 Late 2022"]
[White "Ronka, Erik"]
[Black "Vasques, Antonio Pedro Freixial"]
[WhiteFideId "505080"]
[BlackFideId "1908332"]
[WhiteElo "2264"]
[BlackElo "2243"]
[Result "0-1"]
[Round "04"]
[TimeControl "180+1"]
[Date "2022.11.30"]
[WhiteClock "0:01:07"]
[BlackClock "0:00:16"]

1. d4 {[%clk 0:03:00]}  Nf6 {[%clk 0:02:59]} 2. c4 {[%clk 0:03:01]}  e6 {[%clk 0:02:59]} 3. Nc3 {[%clk 0:03:01]}  Bb4 {[%clk 0:02:59]} 4. a3 {[%clk 0:03:02]}  Bxc3+ {[%clk 0:02:58]} 5. bxc3 {[%clk 0:03:03]}  b6 {[%clk 0:02:58]} 6. f3 {[%clk 0:03:03]}  Bb7 {[%clk 0:02:57]} 7. e4 {[%clk 0:03:03]}  c5 {[%clk 0:02:50]} 8. Bd3 {[%clk 0:03:02]}  h6 {[%clk 0:02:46]} 9. Ne2 {[%clk 0:03:00]}  d6 {[%clk 0:02:47]} 10. O-O {[%clk 0:03:00]}  Nc6 {[%clk 0:02:45]} 11. Be3 {[%clk 0:02:59]}  O-O {[%clk 0:02:43]} 12. f4 {[%clk 0:02:55]}  e5 {[%clk 0:02:41]} 13. fxe5 {[%clk 0:02:53]}  dxe5 {[%clk 0:02:40]} 14. d5 {[%clk 0:02:54]}  Na5 {[%clk 0:02:41]} 15. Ng3 {[%clk 0:02:52]}  Bc8 {[%clk 0:02:37]} 16. h3 {[%clk 0:02:45]}  Ne8 {[%clk 0:02:27]} 17. Qe2 {[%clk 0:02:40]}  Nd6 {[%clk 0:02:26]} 18. Rf3 {[%clk 0:02:40]}  Bd7 {[%clk 0:02:10]} 19. Raf1 {[%clk 0:02:37]}  f6 {[%clk 0:02:06]} 20. Nh5 {[%clk 0:02:36]}  Be8 {[%clk 0:02:04]} 21. Rg3 {[%clk 0:02:36]}  g5 {[%clk 0:01:14]} 22. h4 {[%clk 0:02:27]}  Bg6 {[%clk 0:00:58]} 23. hxg5 {[%clk 0:02:26]}  fxg5 {[%clk 0:00:59]} 24. Rxf8+ {[%clk 0:02:15]}  Qxf8 {[%clk 0:01:00]} 25. Rf3 {[%clk 0:02:11]}  Qe7 {[%clk 0:00:51]} 26. g4 {[%clk 0:01:49]}  Bxh5 {[%clk 0:00:44]} 27. gxh5 {[%clk 0:01:49]}  Rf8 {[%clk 0:00:44]} 28. Rg3 {[%clk 0:01:43]}  Kh7 {[%clk 0:00:38]} 29. Qg4 {[%clk 0:01:42]}  Naxc4 {[%clk 0:00:34]} 30. Bf2 {[%clk 0:01:40]}  Nxa3 {[%clk 0:00:27]} 31. Rf3 {[%clk 0:01:35]}  Rxf3 {[%clk 0:00:23]} 32. Qxf3 {[%clk 0:01:36]}  Qf7 {[%clk 0:00:21]} 33. Qe2 {[%clk 0:01:34]}  Qf4 {[%clk 0:00:18]} 34. Be3 {[%clk 0:01:32]}  Qh4 {[%clk 0:00:18]} 35. Bf2 {[%clk 0:01:32]}  Qh3 {[%clk 0:00:18]} 36. c4 {[%clk 0:01:29]}  g4 {[%clk 0:00:15]} 37. Be1 {[%clk 0:01:29]}  g3 {[%clk 0:00:15]} 38. Bc3 {[%clk 0:01:27]}  g2 {[%clk 0:00:14]} 39. Qxg2 {[%clk 0:01:08]}  Qxg2+ {[%clk 0:00:14]} 40. Kxg2 {[%clk 0:01:09]}  Naxc4 {[%clk 0:00:15]} 41. Kf3 {[%clk 0:01:06]}  b5 {[%clk 0:00:16]} 42. Bb1 {[%clk 0:01:03]}  b4 {[%clk 0:00:16]} 43. Be1 {[%clk 0:01:04]}  a5 {[%clk 0:00:16]} 44. Bg3 {[%clk 0:01:02]}  a4 {[%clk 0:00:15]} 45. Be1 {[%clk 0:01:01]}  b3 {[%clk 0:00:15]} 46. Ba2 {[%clk 0:01:02]}  bxa2 {[%clk 0:00:15]} 47. Kg4 {[%clk 0:01:02]}  a3 {[%clk 0:00:15]} 48. Bg3 {[%clk 0:01:02]}  a1=Q {[%clk 0:00:15]} 49. Bxe5 {[%clk 0:01:03]}  Qxe5 {[%clk 0:00:14]} 50. Kh4 {[%clk 0:01:04]}  Qxe4+ {[%clk 0:00:15]} 51. Kh3 {[%clk 0:01:04]}  Qf3+ {[%clk 0:00:15]} 52. Kh2 {[%clk 0:01:05]}  Qg4 {[%clk 0:00:15]} 53. Kh1 {[%clk 0:01:06]}  Ne3 {[%clk 0:00:15]} 54. Kh2 {[%clk 0:01:07]}  Qg2# {[%clk 0:00:16]} 0-1


[Site "https://www.chess.com"]

[Event "Titled Tuesday Blitz November 29 Late 2022"]
[White "Sadovsky, Artem"]
[Black "Hernandez Gonzalez, William"]
[WhiteFideId "4155840"]
[BlackFideId "3509915"]
[WhiteElo "2312"]
[BlackElo "2374"]
[Result "1-0"]
[Round "04"]
[TimeControl "180+1"]
[Date "2022.11.30"]
[WhiteClock "0:00:09"]
[BlackClock "0:00:10"]

1. Nf3 {[%clk 0:02:59]}  Nf6 {[%clk 0:02:59]} 2. e3 {[%clk 0:02:57]}  e6 {[%clk 0:02:54]} 3. c4 {[%clk 0:02:57]}  d5 {[%clk 0:02:53]} 4. b3 {[%clk 0:02:56]}  Be7 {[%clk 0:02:52]} 5. Bb2 {[%clk 0:02:56]}  O-O {[%clk 0:02:52]} 6. Be2 {[%clk 0:02:56]}  b6 {[%clk 0:02:51]} 7. O-O {[%clk 0:02:56]}  Bb7 {[%clk 0:02:51]} 8. d3 {[%clk 0:02:54]}  Nbd7 {[%clk 0:02:51]} 9. Nbd2 {[%clk 0:02:53]}  c5 {[%clk 0:02:50]} 10. Qc2 {[%clk 0:02:53]}  Re8 {[%clk 0:02:48]} 11. e4 {[%clk 0:02:48]}  dxe4 {[%clk 0:02:43]} 12. Nxe4 {[%clk 0:02:49]}  Nxe4 {[%clk 0:02:36]} 13. dxe4 {[%clk 0:02:49]}  Qc7 {[%clk 0:02:25]} 14. Rad1 {[%clk 0:02:35]}  e5 {[%clk 0:02:12]} 15. Rxd7 {[%clk 0:02:27]}  Qxd7 {[%clk 0:02:11]} 16. Nxe5 {[%clk 0:02:28]}  Qc7 {[%clk 0:02:07]} 17. Bh5 {[%clk 0:02:22]}  g6 {[%clk 0:02:04]} 18. Ng4 {[%clk 0:02:05]}  f6 {[%clk 0:01:35]} 19. Bxf6 {[%clk 0:01:37]}  gxh5 {[%clk 0:01:24]} 20. Nh6+ {[%clk 0:01:36]}  Kf8 {[%clk 0:01:24]} 21. Qc3 {[%clk 0:01:32]}  Bd6 {[%clk 0:01:10]} 22. Qf3 {[%clk 0:01:08]}  Bxe4 {[%clk 0:01:03]} 23. Be7+ {[%clk 0:00:57]}  Kxe7 {[%clk 0:01:02]} 24. Qxe4+ {[%clk 0:00:57]}  Kd7 {[%clk 0:01:02]} 25. Qf5+ {[%clk 0:00:41]}  Re6 {[%clk 0:01:01]} 26. Qf7+ {[%clk 0:00:35]}  Re7 {[%clk 0:00:51]} 27. Qf5+ {[%clk 0:00:33]}  Ke8 {[%clk 0:00:49]} 28. Qxh5+ {[%clk 0:00:25]}  Kd8 {[%clk 0:00:49]} 29. Rd1 {[%clk 0:00:23]}  Qd7 {[%clk 0:00:41]} 30. Qd5 {[%clk 0:00:16]}  Bxh2+ {[%clk 0:00:39]} 31. Kxh2 {[%clk 0:00:17]}  Qxd5 {[%clk 0:00:39]} 32. Rxd5+ {[%clk 0:00:18]}  Kc7 {[%clk 0:00:37]} 33. Ng4 {[%clk 0:00:16]}  Rd8 {[%clk 0:00:35]} 34. Ne3 {[%clk 0:00:13]}  Red7 {[%clk 0:00:27]} 35. Rh5 {[%clk 0:00:12]}  Kb7 {[%clk 0:00:26]} 36. Nd5 {[%clk 0:00:13]}  Rf7 {[%clk 0:00:25]} 37. f4 {[%clk 0:00:14]}  Rdd7 {[%clk 0:00:25]} 38. g4 {[%clk 0:00:14]}  b5 {[%clk 0:00:25]} 39. Kg3 {[%clk 0:00:14]}  b4 {[%clk 0:00:24]} 40. f5 {[%clk 0:00:14]}  Rd6 {[%clk 0:00:25]} 41. Kf4 {[%clk 0:00:14]}  Ra6 {[%clk 0:00:25]} 42. Rh2 {[%clk 0:00:14]}  Rd6 {[%clk 0:00:20]} 43. g5 {[%clk 0:00:14]}  a5 {[%clk 0:00:19]} 44. Ke5 {[%clk 0:00:14]}  Kc6 {[%clk 0:00:19]} 45. f6 {[%clk 0:00:12]}  a4 {[%clk 0:00:18]} 46. bxa4 {[%clk 0:00:10]}  Kd7 {[%clk 0:00:15]} 47. Kf5 {[%clk 0:00:09]}  Kc6 {[%clk 0:00:15]} 48. Ke5 {[%clk 0:00:08]}  Kd7 {[%clk 0:00:15]} 49. a5 {[%clk 0:00:09]}  Kc6 {[%clk 0:00:14]} 50. Ne7+ {[%clk 0:00:09]}  Kd7 {[%clk 0:00:14]} 51. Nd5 {[%clk 0:00:07]}  Kc6 {[%clk 0:00:13]} 52. a6 {[%clk 0:00:07]}  Ra7 {[%clk 0:00:12]} 53. Ne7+ {[%clk 0:00:07]}  Kd7 {[%clk 0:00:12]} 54. Rxh7 {[%clk 0:00:07]}  Rdxa6 {[%clk 0:00:11]} 55. Nf5+ {[%clk 0:00:07]}  Kc6 {[%clk 0:00:10]} 56. Rxa7 {[%clk 0:00:08]}  Rxa7 {[%clk 0:00:10]} 57. g6 {[%clk 0:00:09]}  Rxa2 {[%clk 0:00:09]} 58. f7 {[%clk 0:00:10]}  Ra8 {[%clk 0:00:09]} 59. g7 {[%clk 0:00:09]}  b3 {[%clk 0:00:10]} 60. f8=Q {[%clk 0:00:10]}  b2 {[%clk 0:00:10]} 61. Qxa8+ {[%clk 0:00:09]} 1-0


[Site "https://www.chess.com"]

[Event "Titled Tuesday Blitz November 29 Late 2022"]
[White "Sarkar, Justin"]
[Black "Tanenbaum, Zachary"]
[WhiteFideId "2010011"]
[BlackFideId "2060850"]
[WhiteElo "2239"]
[BlackElo "2175"]
[Result "0-1"]
[Round "04"]
[TimeControl "180+1"]
[Date "2022.11.30"]
[WhiteClock "0:00:15"]
[BlackClock "0:01:43"]

1. e4 {[%clk 0:02:44]}  e5 {[%clk 0:02:59]} 2. Nc3 {[%clk 0:02:44]}  Nc6 {[%clk 0:03:00]} 3. f4 {[%clk 0:02:40]}  exf4 {[%clk 0:03:00]} 4. d4 {[%clk 0:02:39]}  Qh4+ {[%clk 0:02:59]} 5. Ke2 {[%clk 0:02:39]}  d5 {[%clk 0:02:52]} 6. Nf3 {[%clk 0:02:36]}  Bg4 {[%clk 0:02:51]} 7. Nxd5 {[%clk 0:02:33]}  O-O-O {[%clk 0:02:50]} 8. Bxf4 {[%clk 0:02:29]}  Nf6 {[%clk 0:02:43]} 9. Bg3 {[%clk 0:01:53]}  Qh6 {[%clk 0:02:18]} 10. Bxc7 {[%clk 0:00:28]}  Nxd5 {[%clk 0:02:14]} 11. exd5 {[%clk 0:00:25]}  Re8+ {[%clk 0:02:00]} 12. Kf2 {[%clk 0:00:24]}  Kxc7 {[%clk 0:01:44]} 13. dxc6 {[%clk 0:00:18]}  Qe3+ {[%clk 0:01:43]} 14. Kg3 {[%clk 0:00:17]}  Bd6+ {[%clk 0:01:43]} 15. Kxg4 {[%clk 0:00:15]}  h5+ {[%clk 0:01:43]} 0-1


[Site "https://www.chess.com"]